fUST/lending_fUST_20250424
["ID","MTS","AMOUNT","RATE_DAILY","PERIOD"]
[358871216,1745501438797,-500.0,0.00019178,2]
[358871218,1745501438809,-500.0,0.00019178,2]
[358871220,1745501438818,-500.0,0.00019178,2]
[358871221,1745501438827,-500.0,0.00019178,2]
[358871223,1745501438836,-500.0,0.00019178,2]
[358871225,1745501438846,-571.39,0.00019178,2]
[358871227,1745501438854,-500.0,0.00019178,2]
[358871229,1745501438864,-500.0,0.00019178,2]
[358871231,1745501438873,-500.0,0.00019178,2]
[358871233,1745501438882,-504.6676617,0.00019178,2]
[358871235,1745501438891,-500.0,0.00019178,2]
[358871237,1745501438900,-500.0,0.00019178,2]
[358871239,1745501438910,-500.0,0.00019178,2]
[358871241,1745501438919,-500.0,0.00019178,2]
[358871243,1745501438928,-504.05371868,0.00019178,2]
[358871245,1745501438937,-500.0,0.00019178,2]
[358871247,1745501438947,-504.18676747,0.00019178,2]
[358871249,1745501438956,-586.92,0.00019178,2]
[358871250,1745501438965,-500.0,0.00019178,2]
[358871252,1745501438974,-500.0,0.00019178,2]
[358871254,1745501438984,-500.0,0.00019178,2]
[358871256,1745501438993,-500.0,0.00019178,2]
[358871277,1745501439191,-518.42208749,0.00019178,2]
[358871279,1745501439201,-500.0,0.00019178,2]
[358871280,1745501439211,-277.55965147,0.00019178,2]
[358871282,1745501439220,-502.87061232,0.00019178,2]
[358871284,1745501439229,-500.0,0.00019178,2]
[358871285,1745501439239,-500.0,0.00019178,2]
[358871287,1745501439248,-500.0,0.00019178,2]
[358871289,1745501439257,-500.0,0.00019178,2]
[358871291,1745501439267,-566.84,0.00019178,2]
[358871293,1745501439276,-508.63017885,0.00019178,2]
[358871294,1745501439288,-500.0,0.00019178,2]
[358871296,1745501439298,-2585.69,0.00019178,2]
[358871298,1745501439311,-1435.23,0.00019178,2]
[358871300,1745501439320,-503.29216947,0.00019178,2]
[358871302,1745501439330,-500.0,0.00019178,2]
[358871304,1745501439339,-505.54069586,0.00019178,2]
[358871306,1745501439349,-688.97,0.00019178,2]
[358871308,1745501439358,-500.0,0.00019178,2]
[358871310,1745501439368,-503.34243995,0.00019178,2]
[358871311,1745501439377,-500.0,0.00019178,2]
[358871313,1745501439387,-500.0,0.00019178,2]
[358871315,1745501439396,-500.0,0.00019178,2]
[358871317,1745501439406,-500.0,0.00019178,2]
[358871319,1745501439415,-500.0,0.00019178,2]
[358871321,1745501439424,-500.0,0.00019178,2]
[358871323,1745501439434,-500.0,0.00019178,2]
[358871324,1745501439443,-500.0,0.00019178,2]
[358871326,1745501439452,-500.0,0.00019178,2]
[358871328,1745501439462,-500.0,0.00019178,2]
[358871330,1745501439471,-500.0,0.00019178,2]
[358871333,1745501439490,-500.0,0.00019178,2]
[358871335,1745501439502,-656.98,0.00019178,2]
[358871337,1745501439512,-500.0,0.00019178,2]
[358871339,1745501439522,-500.0,0.00019178,2]
[358871341,1745501439532,-500.0,0.00019178,2]
[358871342,1745501439542,-503.10909015,0.00019178,2]
[358871344,1745501439557,-500.0,0.00019178,2]
[358871346,1745501439573,-500.0,0.00019178,2]
[358871348,1745501439584,-500.0,0.00019178,2]
[358871350,1745501439594,-500.0,0.00019178,2]
[358871352,1745501439604,-500.0,0.00019178,2]
[358871354,1745501439614,-500.0,0.00019178,2]
[358871356,1745501439625,-500.0,0.00019178,2]
[358871358,1745501439635,-500.0,0.00019178,2]
[358871360,1745501439645,-500.0,0.00019178,2]
[358871362,1745501439664,-500.0,0.00019178,2]
[358871364,1745501439675,-500.0,0.00019178,2]
[358871366,1745501439685,-500.0,0.00019178,2]
[358871368,1745501439695,-574.89,0.00019178,2]
[358871370,1745501439705,-2213.42,0.00019178,2]
[358871372,1745501439715,-500.0,0.00019178,2]
[358871373,1745501439725,-500.0,0.00019178,2]
[358871375,1745501439735,-798.58,0.00019178,2]
[358871377,1745501439745,-500.0,0.00019178,2]
[358871379,1745501439755,-500.0,0.00019178,2]
[358871381,1745501439766,-500.0,0.00019178,2]
[358871383,1745501439776,-500.0,0.00019178,2]
[358871385,1745501439786,-500.0,0.00019178,2]
[358871387,1745501439797,-1142.89,0.00019178,2]
[358871389,1745501439810,-518.91,0.00019178,2]
[358871391,1745501439820,-615.0,0.00019178,2]
[358871393,1745501439830,-500.0,0.00019178,2]
[358871395,1745501439840,-500.0,0.00019178,2]
[358871397,1745501439850,-639.91,0.00019178,2]
[358871399,1745501439859,-500.0,0.00019178,2]
[358871401,1745501439870,-500.0,0.00019178,2]
[358871403,1745501439880,-500.0,0.00019178,2]
[358871405,1745501439891,-500.0,0.00019178,2]
[358871407,1745501439900,-500.0,0.00019178,2]
[358871409,1745501439910,-500.0,0.00019178,2]
[358871411,1745501439920,-500.0,0.00019178,2]
[358871414,1745501439930,-596.18538446,0.00019178,2]
[358871416,1745501439940,-500.0,0.00019178,2]
[358871417,1745501439949,-705.08,0.00019178,2]
[358871419,1745501439959,-500.0,0.00019178,2]
[358871420,1745501439969,-500.0,0.00019178,2]
[358871421,1745501439979,-1024.67,0.00019178,2]
[358871423,1745501439989,-1403.75,0.00019178,2]
[358871424,1745501439998,-500.0,0.00019178,2]
[358871425,1745501440008,-593.93519418,0.00019178,2]
[358871427,1745501440018,-500.0,0.00019178,2]
[358871428,1745501440028,-500.0,0.00019178,2]
[358871429,1745501440038,-500.0,0.00019178,2]
[358871430,1745501440049,-500.0,0.00019178,2]
[358871432,1745501440060,-167.32404216,0.00019178,2]
[358871435,1745501440069,-500.0,0.00019178,2]
[358871436,1745501440079,-503.23625298,0.00019178,2]
[358871437,1745501440088,-500.0,0.00019178,2]
[358871438,1745501440098,-558.02053089,0.00019178,2]
[358871439,1745501440108,-500.0,0.00019178,2]
[358871440,1745501440118,-500.0,0.00019178,2]
[358871441,1745501440128,-500.0,0.00019178,2]
[358871442,1745501440142,-500.0,0.00019178,2]
[358871443,1745501440152,-500.0,0.00019178,2]
[358871444,1745501440163,-500.0,0.00019178,2]
[358871445,1745501440173,-500.0,0.00019178,2]
[358871446,1745501440184,-2736.6,0.00019178,2]
[358871447,1745501440194,-998.32,0.00019178,2]
[358871448,1745501440204,-504.5770294,0.00019178,2]
[358871449,1745501440214,-507.00802912,0.00019178,2]
[358871450,1745501440225,-500.0,0.00019178,2]
[358871451,1745501440234,-500.0,0.00019178,2]
[358871452,1745501440244,-648.52,0.00019178,2]
[358871453,1745501440254,-500.0,0.00019178,2]
[358871454,1745501440264,-946.58,0.00019178,2]
[358871455,1745501440275,-500.0,0.00019178,2]
[358871456,1745501440285,-1128.35,0.00019178,2]
[358871457,1745501440296,-763.15,0.00019178,2]
[358871458,1745501440309,-500.0,0.00019178,2]
[358871459,1745501440319,-500.0,0.00019178,2]
[358871460,1745501440329,-810.24,0.00019178,2]
[358871461,1745501440339,-500.0,0.00019178,2]
[358871462,1745501440349,-500.45262469,0.00019178,2]
[358871463,1745501440359,-500.0,0.00019178,2]
[358871464,1745501440369,-500.0,0.00019178,2]
[358871465,1745501440379,-617.88511885,0.00019178,2]
[358871466,1745501440389,-463.90463715,0.00019178,2]
[358871467,1745501440399,-500.0,0.00019178,2]
[358871468,1745501440409,-590.54,0.00019178,2]
[358871469,1745501440419,-729.48,0.00019178,2]
[358871470,1745501440429,-500.0,0.00019178,2]
[358871471,1745501440438,-500.0,0.00019178,2]
[358871472,1745501440447,-500.0,0.00019178,2]
[358871473,1745501440458,-500.0,0.00019178,2]
[358871474,1745501440468,-500.0,0.00019178,2]
[358871475,1745501440477,-1037.89,0.00019178,2]
[358871476,1745501440487,-503.31382095,0.00019178,2]
[358871477,1745501440496,-500.0,0.00019178,2]
[358871478,1745501440505,-500.0,0.00019178,2]
[358871479,1745501440515,-500.0,0.00019178,2]
[358871480,1745501440524,-500.0,0.00019178,2]
[358871481,1745501440534,-500.0,0.00019178,2]
[358871482,1745501440543,-500.0,0.00019178,2]
[358871483,1745501440556,-500.0,0.00019178,2]
[358871484,1745501440573,-680.63,0.00019178,2]
[358871485,1745501440595,-504.30502543,0.00019178,2]
[358871486,1745501440615,-500.0,0.00019178,2]
[358871487,1745501440625,-500.0,0.00019178,2]
[358871488,1745501440635,-500.0,0.00019178,2]
[358871489,1745501440644,-505.9188295,0.00019178,2]
[358871490,1745501440658,-500.0,0.00019178,2]
[358871491,1745501440667,-642.39,0.00019178,2]
[358871493,1745501440677,-637.06,0.00019178,2]
[358871495,1745501440686,-500.0,0.00019178,2]
[358871496,1745501440698,-1569.31,0.00019178,2]
[358871497,1745501440709,-500.0,0.00019178,2]
[358871498,1745501440719,-500.0,0.00019178,2]
[358871499,1745501440728,-503.91690168,0.00019178,2]
[358871500,1745501440739,-500.0,0.00019178,2]
[358871501,1745501440749,-500.0,0.00019178,2]
[358871502,1745501440758,-500.0,0.00019178,2]
[358871503,1745501440768,-503.76834141,0.00019178,2]
[358871504,1745501440777,-625.23,0.00019178,2]
[358871505,1745501440787,-500.0,0.00019178,2]
[358871506,1745501440797,-500.0,0.00019178,2]
[358871507,1745501440812,-500.0,0.00019178,2]
[358871508,1745501440821,-500.0,0.00019178,2]
[358871509,1745501440831,-502.2314393,0.00019178,2]
[358871511,1745501440840,-504.4368688,0.00019178,2]
[358871512,1745501440850,-502.88738888,0.00019178,2]
[358871513,1745501440860,-500.0,0.00019178,2]
[358871514,1745501440869,-500.0,0.00019178,2]
[358871515,1745501440878,-500.0,0.00019178,2]
[358871516,1745501440888,-700.65,0.00019178,2]
[358871517,1745501440897,-500.0,0.00019178,2]
[358871518,1745501440907,-500.0,0.00019178,2]
[358871519,1745501440917,-500.0,0.00019178,2]
[358871520,1745501440926,-500.0,0.00019178,2]
[358871521,1745501440936,-510.87734503,0.00019178,2]
[358871522,1745501440946,-500.0,0.00019178,2]
[358871523,1745501440955,-500.0,0.00019178,2]
[358871524,1745501440964,-500.0,0.00019178,2]
[358871525,1745501440974,-500.0,0.00019178,2]
[358871526,1745501440984,-500.0,0.00019178,2]
[358871527,1745501440993,-770.34,0.00019178,2]
[358871528,1745501441003,-502.59668745,0.00019178,2]
[358871529,1745501441013,-500.0,0.00019178,2]
[358871530,1745501441023,-512.35601815,0.00019178,2]
[358871531,1745501441033,-500.0,0.00019178,2]
[358871532,1745501441042,-507.14471791,0.00019178,2]
[358871533,1745501441053,-500.0,0.00019178,2]
[358871534,1745501441063,-500.0,0.00019178,2]
[358871535,1745501441073,-500.0,0.00019178,2]
[358871536,1745501441082,-500.0,0.00019178,2]
[358871537,1745501441092,-500.0,0.00019178,2]
[358871538,1745501441102,-500.0,0.00019178,2]
[358871539,1745501441112,-500.0,0.00019178,2]
[358871540,1745501441121,-500.0,0.00019178,2]
[358871541,1745501441132,-509.09578497,0.00019178,2]
[358871542,1745501441142,-500.0,0.00019178,2]
[358871543,1745501441153,-500.0,0.00019178,2]
[358871544,1745501441163,-500.0,0.00019178,2]
[358871545,1745501441173,-500.0,0.00019178,2]
[358871546,1745501441183,-500.0,0.00019178,2]
[358871547,1745501441193,-500.0,0.00019178,2]
[358871548,1745501441203,-500.0,0.00019178,2]
[358871549,1745501441213,-500.0,0.00019178,2]
[358871550,1745501441223,-500.0,0.00019178,2]
[358871551,1745501441233,-1531.06,0.00019178,2]
[358871552,1745501441243,-500.0,0.00019178,2]
[358871553,1745501441253,-500.0,0.00019178,2]
[358871554,1745501441262,-3908.97,0.00019178,2]
[358871555,1745501441272,-500.0,0.00019178,2]
[358871556,1745501441282,-500.0,0.00019178,2]
[358871557,1745501441292,-925.42,0.00019178,2]
[358871558,1745501441305,-500.0,0.00019178,2]
[358871559,1745501441315,-500.0,0.00019178,2]
[358871560,1745501441325,-245.04110683,0.00019178,2]
[358871561,1745501441335,-1115.55,0.00019178,2]
[358871562,1745501441346,-500.0,0.00019178,2]
[358871563,1745501441357,-557.01,0.00019178,2]
[358871564,1745501441368,-537.35139455,0.00019178,2]
[358871565,1745501441379,-677.87,0.00019178,2]
[358871566,1745501441390,-500.0,0.00019178,2]
[358871567,1745501441401,-151.0,0.00019178,2]
[358871568,1745501441411,-500.0,0.00019178,2]
[358871569,1745501441422,-151.0,0.00019178,2]
[358871570,1745501441432,-500.0,0.00019178,2]
[358871571,1745501441442,-549.43,0.00019178,2]
[358871572,1745501441452,-526.97,0.00019178,2]
[358871573,1745501441462,-151.0,0.00019178,2]
[358871574,1745501441473,-500.0,0.00019178,2]
[358871575,1745501441483,-500.0,0.00019178,2]
[358871576,1745501441494,-500.0,0.00019178,2]
[358871577,1745501441504,-783.12,0.00019178,2]
[358871578,1745501441515,-500.0,0.00019178,2]
[358871579,1745501441525,-500.0,0.00019178,2]
[358871580,1745501441535,-1000.0,0.00019178,2]
[358871581,1745501441545,-1618.39,0.00019178,2]
[358871582,1745501441559,-855.16,0.00019178,2]
[358871583,1745501441570,-752.15,0.00019178,2]
[358871584,1745501441581,-400.73634668,0.00019178,2]
[358871585,1745501441591,-500.0,0.00019178,2]
[358871586,1745501441602,-936.57,0.00019178,2]
[358871587,1745501441612,-1281.0,0.00019178,2]
[358871588,1745501441623,-1230.48,0.00019178,2]
[358871589,1745501441633,-500.0,0.00019178,2]
[358871590,1745501441643,-500.0,0.00019178,2]
[358871591,1745501441653,-500.0,0.00019178,2]
[358871592,1745501441665,-1495.37,0.00019178,2]
[358871593,1745501441675,-500.0,0.00019178,2]
[358871594,1745501441685,-515.64641614,0.00019178,2]
[358871595,1745501441696,-500.0,0.00019178,2]
[358871596,1745501441707,-500.0,0.00019178,2]
[358871597,1745501441717,-1058.09,0.00019178,2]
[358871598,1745501441727,-500.0,0.00019178,2]
[358871599,1745501441738,-500.0,0.00019178,2]
[358871600,1745501441749,-500.0,0.00019178,2]
[358871601,1745501441759,-2790.87,0.00019178,2]
[358871602,1745501441769,-500.0,0.00019178,2]
[358871603,1745501441779,-508.14850248,0.00019178,2]
[358871604,1745501441788,-500.0,0.00019178,2]
[358871605,1745501441798,-524.82,0.00019178,2]
[358871606,1745501441811,-5816.6,0.00019178,2]
[358871607,1745501441822,-1012.13,0.00019178,2]
[358871608,1745501441832,-639.40498532,0.00019178,2]
[358871609,1745501441843,-500.0,0.00019178,2]
[358871610,1745501441853,-607.15538036,0.00019178,2]
[358871611,1745501441863,-419.8076554,0.00019178,2]
[358871612,1745501441873,-500.0,0.00019178,2]
[358871613,1745501441884,-500.0,0.00019178,2]
[358871614,1745501441894,-500.0,0.00019178,2]
[358871615,1745501441904,-3624.67,0.00019178,2]
[358871616,1745501441914,-242.75708961,0.00019178,2]
[358871617,1745501441924,-500.0,0.00019178,2]
[358871618,1745501441934,-772.3,0.00019178,2]
[358871619,1745501441944,-500.0,0.00019178,2]
[358871620,1745501441954,-260.82011822,0.00019178,2]
[358871621,1745501441965,-813.66,0.00019178,2]
[358871622,1745501441974,-466.83377839,0.00019178,2]
[358871623,1745501441984,-500.0,0.00019178,2]
[358871624,1745501441995,-500.0,0.00019178,2]
[358871625,1745501442006,-757.65,0.00019178,2]
[358871626,1745501442016,-275.60695391,0.00019178,2]
[358871627,1745501442027,-1017.33,0.00019178,2]
[358871628,1745501442036,-500.0,0.00019178,2]
[358871629,1745501442047,-500.0,0.00019178,2]
[358871630,1745501442062,-1544.18,0.00019178,2]
[358871631,1745501442072,-500.0,0.00019178,2]
[358871632,1745501442082,-501.02104774,0.00019178,2]
[358871633,1745501442092,-500.0,0.00019178,2]
[358871634,1745501442102,-3677.42,0.00019178,2]
[358871635,1745501442113,-500.0,0.00019178,2]
[358871636,1745501442124,-508.83018846,0.00019178,2]
[358871637,1745501442134,-576.33,0.00019178,2]
[358871638,1745501442144,-793.78,0.00019178,2]
[358871639,1745501442155,-500.0,0.00019178,2]
[358871640,1745501442166,-500.0,0.00019178,2]
[358871641,1745501442176,-500.0,0.00019178,2]
[358871642,1745501442187,-500.0,0.00019178,2]
[358871643,1745501442197,-500.0,0.00019178,2]
[358871644,1745501442208,-500.0,0.00019178,2]
[358871645,1745501442218,-500.0,0.00019178,2]
[358871646,1745501442229,-452.09030119,0.00019178,2]
[358871647,1745501442239,-500.0,0.00019178,2]
[358871648,1745501442249,-1267.36,0.00019178,2]
[358871649,1745501442258,-500.0,0.00019178,2]
[358871650,1745501442268,-500.0,0.00019178,2]
[358871651,1745501442278,-500.0,0.00019178,2]
[358871652,1745501442287,-500.0,0.00019178,2]
[358871653,1745501442297,-500.0,0.00019178,2]
[358871654,1745501442309,-1043.89,0.00019178,2]
[358871655,1745501442319,-712.06,0.00019178,2]
[358871656,1745501442328,-500.0,0.00019178,2]
[358871657,1745501442339,-500.0,0.00019178,2]
[358871658,1745501442348,-500.0,0.00019178,2]
[358871659,1745501442358,-3268.04,0.00019178,2]
[358871660,1745501442368,-500.0,0.00019178,2]
[358871661,1745501442378,-500.0,0.00019178,2]
[358871662,1745501442388,-500.0,0.00019178,2]
[358871663,1745501442561,-500.0,0.00019178,2]
[358871664,1745501442571,-1302.84,0.00019178,2]
[358871665,1745501442581,-520.79,0.00019178,2]
[358871666,1745501442591,-500.0,0.00019178,2]
[358871667,1745501442600,-500.0,0.00019178,2]
[358871668,1745501442610,-847.35,0.00019178,2]
[358871669,1745501442619,-501.20866576,0.00019178,2]
[358871670,1745501442628,-500.0,0.00019178,2]
[358871671,1745501442637,-927.71,0.00019178,2]
[358871672,1745501442647,-5340.26,0.00019178,2]
[358871673,1745501442657,-500.0,0.00019178,2]
[358871674,1745501442666,-500.0,0.00019178,2]
[358871675,1745501442677,-500.0,0.00019178,2]
[358871676,1745501442687,-4363.86,0.00019178,2]
[358871677,1745501442697,-500.0,0.00019178,2]
[358871678,1745501442707,-500.0,0.00019178,2]
[358871679,1745501442716,-3123.79,0.00019178,2]
[358871680,1745501442726,-525.99,0.00019178,2]
[358871681,1745501442742,-500.0,0.00019178,2]
[358871682,1745501442751,-1282.85,0.00019178,2]
[358871683,1745501442760,-500.0,0.00019178,2]
[358871684,1745501442769,-510.60520705,0.00019178,2]
[358871686,1745501442778,-500.0,0.00019178,2]
[358871688,1745501442788,-500.0,0.00019178,2]
[358871689,1745501442798,-500.0,0.00019178,2]
[358871690,1745501442809,-3936.75,0.00019178,2]
[358871691,1745501442819,-266.99875747,0.00019178,2]
[358871692,1745501442828,-871.92,0.00019178,2]
[358871693,1745501442838,-500.0,0.00019178,2]
[358871694,1745501442848,-1496.32,0.00019178,2]
[358871695,1745501442858,-505.60450518,0.00019178,2]
[358871696,1745501442868,-933.84,0.00019178,2]
[358871697,1745501442878,-500.0,0.00019178,2]
[358871698,1745501442887,-500.0,0.00019178,2]
[358871699,1745501442897,-4920.15069897,0.00019178,2]
[358871702,1745501443106,-454.67922289,0.00019178,2]
[358871703,1745501443119,-3010.68007814,0.00019178,2]
[358871704,1745501443130,-500.0,0.00019178,2]
[358871705,1745501443140,-500.0,0.00019178,2]
[358871706,1745501443150,-658.96,0.00019178,2]
[358871707,1745501443159,-500.0,0.00019178,2]
[358871708,1745501443169,-576.39645204,0.00019178,2]
[358871709,1745501443179,-500.0,0.00019178,2]
[358871710,1745501443188,-1055.93,0.00019178,2]
[358871711,1745501443198,-586.63,0.00019178,2]
[358871712,1745501443207,-3048.18,0.00019178,2]
[358871713,1745501443217,-555.6,0.00019178,2]
[358871714,1745501443227,-500.0,0.00019178,2]
[358871715,1745501443237,-829.57,0.00019178,2]
[358871716,1745501443246,-500.0,0.00019178,2]
[358871717,1745501443255,-504.87985386,0.00019178,2]
[358871718,1745501443265,-500.0,0.00019178,2]
[358871719,1745501443275,-500.0,0.00019178,2]
[358871720,1745501443284,-3182.28,0.00019178,2]
[358871721,1745501443294,-500.0,0.00019178,2]
[358871722,1745501443305,-500.0,0.00019178,2]
[358871723,1745501443315,-524.65146944,0.00019178,2]
[358871724,1745501443325,-500.0,0.00019178,2]
[358871725,1745501443335,-500.0,0.00019178,2]
[358871726,1745501443344,-500.0,0.00019178,2]
[358871727,1745501443354,-504.93828522,0.00019178,2]
[358871728,1745501443363,-763.71,0.00019178,2]
[358871729,1745501443372,-892.57,0.00019178,2]
[358871730,1745501443382,-1014.32,0.00019178,2]
[358871731,1745501443392,-500.0,0.00019178,2]
[358871732,1745501443401,-500.0,0.00019178,2]
[358871734,1745501443411,-500.0,0.00019178,2]
[358871736,1745501443420,-500.0,0.00019178,2]
[358871737,1745501443431,-500.0,0.00019178,2]
[358871739,1745501443441,-500.0,0.00019178,2]
[358871740,1745501443450,-760.44,0.00019178,2]
[358871741,1745501443460,-300.0,0.00019178,2]
[358871742,1745501443469,-158.5,0.000192,2]
[358871743,1745501443479,-151.0,0.00019233,2]
[358871744,1745501443488,-198.0,0.00019288,2]
[358871745,1745501443497,-160.0,0.0001932,2]
[358871746,1745501443507,-160.0,0.00019326,2]
[358871747,1745501443516,-12576.49486522,0.00019326,2]
[358871748,1745501443525,-160.0,0.00019326,2]
[358871749,1745501443534,-420.89490186,0.00019326,2]
[358871751,1745501443544,-160.0,0.00019326,2]
[358871752,1745501443557,-160.0,0.00019326,2]
[358871753,1745501443566,-840.0731918,0.00019326,2]
[358871754,1745501443575,-653.33404451,0.00019329,2]
[358871755,1745501443585,-170.585,0.0001935,2]
[358871756,1745501443594,-1295.71,0.00019424,2]
[358871757,1745501443604,-1295.71,0.00019424,2]
[358871758,1745501443614,-1295.71,0.00019424,2]
[358871759,1745501443623,-1295.71,0.00019424,2]
[358871760,1745501443633,-515.14846854,0.00019424,2]
[358871769,1745501444401,-149.37937691,0.00019178,2]
[358871809,1745502567649,-300.0,0.00017064,2]
[358871810,1745502567672,-486.25572142,0.00017065,2]
[358871811,1745502567694,-245.30382359,0.00017065,2]
[358871812,1745502567716,-544.02156649,0.00017065,2]
[358871813,1745502567736,-500.0,0.00017065,2]
[358871814,1745502567758,-487.98,0.00017065,2]
[358871815,1745502567781,-500.0,0.00017065,2]
[358871816,1745502567806,-409.47817596,0.00017065,2]
[358871817,1745502567835,-500.0,0.00017065,2]
[358871818,1745502567858,-500.0,0.00017065,2]
[358871819,1745502567886,-500.0,0.00017065,2]
[358871820,1745502567915,-173.91588309,0.00017065,2]
[358871874,1745502632786,-300.0,0.00017064,2]
[358871875,1745502632796,-600.0,0.00017064,2]
[358871876,1745502632806,-380.81509655,0.00017064,2]
[358871877,1745502632815,-340.37900499,0.00017064,2]
[358871878,1745502632825,-171.71267651,0.00017064,2]
[358871879,1745502632834,-1834.7049908,0.00017066,2]
[358871880,1745502632844,-157.94596,0.00017474,2]
[358871881,1745502632853,-615.41937338,0.00017808,2]
[358871882,1745502632865,-420.0,0.00018636,2]
[358871883,1745502632874,-2399.9341156,0.000188,2]
[358871884,1745502632884,-9293.32360531,0.00018809,2]
[358871885,1745502632896,-706.6763947,0.00018809,2]
[358871886,1745502632905,-214.2436162,0.00018809,2]
[358871888,1745502633087,-133.12681436,0.00018809,2]
[358871889,1745502633101,-39937.15544153,0.00018878,2]
[358871890,1745502633144,-9323.05693974,0.00018878,2]
[358871909,1745502638482,-500.0,0.00017063,2]
[358871911,1745502638491,-225.51303102,0.00017063,2]
[358871913,1745502638501,-500.0,0.00017063,2]
[358871915,1745502638510,-423.42071248,0.00017063,2]
[358871917,1745502638520,-500.0,0.00017063,2]
[358871919,1745502638530,-500.0,0.00017063,2]
[358871921,1745502638539,-264.67244776,0.00017063,2]
[358871923,1745502638549,-500.0,0.00017063,2]
[358871925,1745502638559,-500.0,0.00017063,2]
[358871927,1745502638568,-500.0,0.00017063,2]
[358871929,1745502638578,-500.0,0.00017063,2]
[358871931,1745502638588,-500.0,0.00017063,2]
[358871933,1745502638598,-11871.01596408,0.00018878,2]
[358871935,1745502638610,-2126.62997256,0.00018878,2]
[358871937,1745502638625,-2370.22534014,0.00018878,2]
[358871939,1745502638637,-4480.1,0.00018878,2]
[358871941,1745502638649,-255.83204123,0.00018878,2]
[358871944,1745502638669,-3132.03581426,0.00018878,2]
[358871947,1745502638681,-2286.29673295,0.00018878,2]
[358871949,1745502638693,-4569.5671913,0.00018878,2]
[358871975,1745502638919,-39263.58578475,0.00018878,2]
[358871977,1745502638929,-150.0,0.000189,2]
[358871979,1745502638938,-360.85275002,0.0001898,2]
[358871981,1745502638947,-187.28436493,0.00019078,2]
[358871983,1745502638956,-215.0738,0.00019166,2]
[358871985,1745502638966,-2000.0,0.0001917,2]
[358871987,1745502638974,-500.0,0.00019173,2]
[358871989,1745502638984,-500.0,0.00019173,2]
[358871991,1745502638993,-511.29337322,0.00019173,2]
[358871993,1745502639003,-500.0,0.00019173,2]
[358871995,1745502639012,-500.0,0.00019173,2]
[358871996,1745502639021,-500.0,0.00019173,2]
[358871998,1745502639031,-500.0,0.00019173,2]
[358872000,1745502639041,-500.0,0.00019178,2]
[358872003,1745502639051,-500.0,0.00019178,2]
[358872004,1745502639060,-502.2594155,0.00019178,2]
[358872006,1745502639069,-500.0,0.00019178,2]
[358872008,1745502639078,-500.0,0.00019178,2]
[358872010,1745502639091,-500.0,0.00019178,2]
[358872012,1745502639110,-500.0,0.00019178,2]
[358872014,1745502639121,-500.0,0.00019178,2]
[358872016,1745502639131,-500.0,0.00019178,2]
[358872018,1745502639141,-500.0,0.00019178,2]
[358872020,1745502639150,-500.0,0.00019178,2]
[358872022,1745502639160,-500.0,0.00019178,2]
[358872024,1745502639169,-500.0,0.00019178,2]
[358872026,1745502639179,-500.0,0.00019178,2]
[358872028,1745502639188,-500.0,0.00019178,2]
[358872030,1745502639198,-593.93519418,0.00019178,2]